bitfinex-derivatives/quotes_SOLF0:USTF0_20250127
["timestamp","ask_amount","ask_price","bid_price","bid_amount"]
[1737966498681,4.4168,226.51,226.4,4.4188]
[1737966499178,4.417,226.5,226.39,1.4068]
[1737966499378,191.0,226.54,226.39,1.4068]
[1737966499782,191.0,226.54,226.3,1.3722]
[1737966500087,22.97380546,226.48,226.44,0.02862435]
[1737966500387,23.00350184,226.48,226.44,0.02862435]
[1737966500586,23.00350184,226.48,226.44,2.435e-05]
[1737966500785,4.4179,226.45,226.44,2.435e-05]
[1737966502284,4.4179,226.45,226.31,1.4068]
[1737966502285,23.00350184,226.48,226.35,4.4198]
[1737966502482,191.0,226.53,226.34,22.97380546]
[1737966502683,191.0,226.53,226.4,4.4189]
[1737966502986,4.4181,226.45,226.34,22.97380546]
[1737966503187,22.97380546,226.52,226.4,4.4189]
[1737966503483,0.03071417,226.48,226.44,0.02849279]
[1737966503785,4.4176,226.47,226.44,0.02849279]
[1737966504187,4.4179,226.45,226.44,0.02849279]
[1737966506190,4.4177,226.47,226.44,0.02849279]
[1737966506888,0.03071417,226.48,226.44,0.02849279]
[1737966507283,0.03071417,226.48,226.45,4.4178]
[1737966507484,0.03071417,226.48,226.44,0.02849279]
[1737966507885,4.4162,226.54,226.47,4.4175]
[1737966508190,22.97380546,226.64,226.45,1.4048]
[1737966508391,2.8351,226.66,226.51,4.4167]
[1737966508692,2.8351,226.66,226.47,22.97380546]
[1737966508985,2.8351,226.66,226.54,0.02881345]
[1737966509285,0.0308817,226.59,226.54,0.02881345]
[1737966509789,4.4460817,226.59,226.54,0.02881345]
[1737966510389,0.0308817,226.59,226.54,0.02881345]
[1737966511190,4.4157,226.57,226.54,0.02881345]
[1737966511390,0.0308817,226.59,226.54,0.02881345]
[1737966511686,4.4154,226.58,226.54,0.02881345]
[1737966511887,0.0308817,226.59,226.54,0.02881345]
[1737966512185,4.4461817,226.59,226.54,0.02881345]
[1737966512391,0.0308817,226.59,226.54,0.02881345]
[1737966512589,23.00468716,226.59,226.54,0.02881345]
[1737966513493,23.00468716,226.59,226.45,1.4048]
[1737966513788,16.1151,226.66,226.4,87.0372]
[1737966513988,4.4173,226.48,226.41,5.83]
[1737966514193,22.97380546,226.63,226.44,22.97380546]
[1737966514494,4.4155,226.58,226.48,4.4173]
[1737966514690,0.03259954,226.56,226.51,0.0280893]
[1737966515489,213.97380546,226.55,226.26,22.97380546]
[1737966515788,22.97380546,226.44,226.27,1.3655]
[1737966516685,0.02849132,226.38,226.33,0.0324898]
[1737966517392,4.4196,226.37,226.33,0.0324898]
[1737966517587,0.02849132,226.38,226.33,0.0324898]
[1737966517784,4.42,226.35,226.33,0.0324898]
[1737966520492,4.42,226.35,226.33,8.98e-05]
[1737966521992,4.422,226.24,226.23,82.64]
[1737966522195,37.21822223,226.31,226.14,3.04]
[1737966523297,0.02981877,226.25,226.2,0.03239013]
[1737966524395,4.4226,226.21,226.2,9.013e-05]
[1737966524797,37.21822223,226.18,226.06,82.66]
[1737966525696,37.21822223,226.14,225.97,4.1728]
[1737966525996,37.21822223,226.1,225.97,4.1728]
[1737966526202,37.21822223,226.06,226.03,6e-08]
[1737966526502,37.24882658,226.06,225.92,3.04]
[1737966526897,37.21822223,226.06,225.92,3.04]
[1737966527192,37.21822223,226.1,225.92,3.04]
[1737966527401,37.21822223,226.06,225.92,3.04]
[1737966527597,0.03029435,226.01,225.97,0.03355045]
[1737966527895,4.4271,225.99,225.97,0.03355045]
[1737966528295,0.03029435,226.01,225.97,0.03355045]
[1737966530499,4.4268,226.0,225.97,0.03355045]
[1737966530800,0.03029435,226.01,225.97,0.03355045]
[1737966536297,37.21822223,225.98,225.85,4.0894]
[1737966536604,37.21822223,225.94,225.81,97.83914766]
[1737966537003,4.429,225.89,225.81,102.26954766]
[1737966537501,0.03367446,225.87,225.83,0.03385589]
[1737966538701,4.4297,225.85,225.83,0.03385589]
[1737966539205,0.03367446,225.87,225.83,0.03385589]
[1737966540602,0.03367446,225.87,225.85,4.4296]
[1737966540802,0.03367446,225.87,225.83,0.03385589]
[1737966541500,0.03367446,225.87,225.85,4.4295]
[1737966541904,4.4277,225.95,225.86,4.4293]
[1737966542101,191.0,225.99,225.83,0.03385589]
[1737966542298,22.98787196,226.02,225.82,0.7945748]
[1737966542501,4.4275,225.96,225.88,4.429]
[1737966542997,1.4048,226.01,225.81,22.98787196]
[1737966543203,0.03063134,225.94,225.92,4.4282]
[1737966543397,1.3413,226.07,225.9,0.02928906]
[1737966543704,4.4265,226.01,225.93,4.428]
[1737966544508,4.4262,226.03,225.94,4.4279]
[1737966544707,0.02890919,225.99,225.95,0.02845832]
[1737966545900,0.02890919,225.99,225.95,4.45605832]
[1737966546101,0.02890919,225.99,225.95,0.02845832]
[1737966547606,4.4271,225.98,225.95,0.02845832]
[1737966547801,0.02890919,225.99,225.95,0.02845832]
[1737966548316,4.4275,225.96,225.95,5.832e-05]
[1737966548610,23.01678115,225.99,225.82,4.4575]
[1737966548812,4.4287,225.9,225.82,8.8876]
[1737966549206,4.4293,225.87,225.82,4.4575]
[1737966549513,4.4293,225.87,225.82,1.4175]
[1737966549710,22.98787196,225.95,225.78,1.3578]
[1737966549904,4.43,225.83,225.82,0.03101527]
[1737966550105,4.43,225.83,225.78,1.3578]
[1737966550509,4.4302,225.82,225.8,0.0306847]
[1737966551713,23.01674003,225.83,225.68,2.7896]
[1737966551913,22.98787196,225.83,225.68,2.7896]
[1737966552615,22.98787196,225.87,225.68,2.7896]
[1737966552814,22.98787196,225.83,225.68,2.7896]
[1737966553113,4.4314,225.76,225.75,0.03264267]
[1737966553309,0.03216862,225.8,225.75,0.03264267]
[1737966553808,4.4312,225.77,225.75,0.03264267]
[1737966554206,0.03216862,225.8,225.75,0.03264267]
[1737966554911,4.4314,225.77,225.75,0.03264267]
[1737966555713,4.4314,225.77,225.75,4.267e-05]
[1737966556914,22.98787196,225.79,225.58,1.4607]
[1737966556915,4.4326,225.7,225.58,1.4607]
[1737966557117,22.98787196,225.74,225.59,3.58443393]
[1737966557312,24.38057196,225.78,225.66,4.4332]
[1737966557514,4.4319,225.74,225.66,4.4332]
[1737966558115,0.03372252,225.72,225.68,0.02943908]
[1737966560317,4.4324,225.71,225.68,0.02943908]
[1737966560516,0.03372252,225.72,225.68,0.02943908]
[1737966562217,4.4324,225.71,225.68,0.02943908]
[1737966562917,4.4326,225.7,225.68,0.02943908]
[1737966563322,4.4328,225.69,225.68,0.02943908]
[1737966567218,4.4328,225.69,225.59,2.7891]
[1737966567219,22.98787196,225.7,225.59,2.7891]
[1737966567526,22.98787196,225.7,225.58,5.8955]
[1737966567915,4.4341,225.63,225.58,5.8955]
[1737966568512,4.46794543,225.63,225.58,5.8955]
[1737966568716,4.4342,225.62,225.58,1.4607]
[1737966569522,0.03384543,225.63,225.6,4.4345]
[1737966570622,0.03384543,225.63,225.58,5.8955]
[1737966571513,4.4342,225.62,225.58,1.4607]
[1737966571719,0.03384543,225.63,225.5,2.6889]
[1737966572018,22.98787196,225.66,225.51,1.4068]
[1737966572323,4.46865591,225.59,225.53,4.4359]
[1737966572518,4.4348,225.59,225.53,4.4359]
[1737966572715,0.02905092,225.58,225.51,1.4068]
[1737966572920,22.98787196,225.7,225.51,1.4068]
[1737966573417,0.03051699,225.63,225.52,0.79565963]
[1737966574224,0.03051699,225.63,225.57,4.4351]
[1737966574519,0.03051699,225.63,225.51,1.4068]
[1737966574721,0.03051699,225.63,225.52,0.79569341]
[1737966575125,0.03051699,225.63,225.6,4.4344]
[1737966575323,22.98787196,225.74,225.53,22.98787196]
[1737966575623,22.98787196,225.74,225.54,0.79552202]
[1737966575827,22.98787196,225.74,225.61,4.4342]
[1737966576028,22.98787196,225.74,225.53,22.98787196]
[1737966576327,4.4328,225.69,225.63,4.434]
[1737966576529,0.03242772,225.66,225.61,0.02876833]
[1737966577631,215.38057196,225.78,225.61,0.02876833]
[1737966577931,22.98787196,225.7,225.51,1.4068]
[1737966578230,22.98787196,225.7,225.52,0.79557476]
[1737966578422,4.4336,225.65,225.57,4.4349]
[1737966578628,0.03369539,225.63,225.59,0.02804991]
[1737966581135,4.4345,225.6,225.59,0.02804991]
[1737966581840,4.4355,225.56,225.51,1.4068]
[1737966582141,22.98787196,225.62,225.51,1.4068]
[1737966582940,22.98787196,225.62,225.54,0.03231453]
[1737966583141,0.03312639,225.59,225.54,0.03231453]
[1737966583444,4.4351,225.58,225.54,0.03231453]
[1737966584939,0.03312639,225.59,225.54,0.03231453]
[1737966586842,0.03312639,225.59,225.57,4.435]
[1737966587240,0.03312639,225.59,225.54,0.03231453]
[1737966587444,22.98787196,225.78,225.54,0.03231453]
[1737966587645,22.98787196,225.78,225.57,22.98787196]
[1737966587940,4.4322,225.72,225.64,4.4338]
[1737966588144,22.98787196,225.78,225.6,3.0]
[1737966588347,1.4494,225.79,225.61,24.41807196]
[1737966588545,0.02955214,225.71,225.67,0.03045605]
[1737966589143,192.7806,225.83,225.67,0.03045605]
[1737966589144,191.0,225.83,225.67,0.03045605]
[1737966589337,1.4494,225.85,225.66,0.79534687]
[1737966589543,28.88693139,225.88,225.69,22.98787196]
[1737966589743,4.43,225.84,225.74,4.4318]
[1737966590041,22.98787196,225.88,225.69,22.98787196]
[1737966590238,0.02932351,225.81,225.77,0.029259]
[1737966591441,1.4444,225.91,225.77,0.029259]
[1737966591646,1.4444,225.91,225.74,0.79496022]
[1737966592443,22.98787196,225.88,225.74,0.79496022]
[1737966592638,22.98787196,225.84,225.8,0.02871076]
[1737966593145,0.0317756,225.85,225.8,0.02871076]
[1737966594746,22.98787196,225.84,225.8,0.02871076]
[1737966596249,4.4303,225.82,225.8,0.02871076]
[1737966597853,4.4304,225.81,225.8,0.02871076]
[1737966598343,4.4303,225.82,225.74,1.4371]
[1737966598540,4.4303,225.82,225.75,4.4316]
[1737966598746,22.98787196,225.84,225.74,1.4371]
[1737966598943,22.98787196,225.84,225.73,1.3722]
[1737966599151,22.98787196,225.8,225.61,1.4055]
[1737966599352,22.98787196,225.8,225.63,3.0]
[1737966599550,0.03256508,225.73,225.68,0.03142778]
[1737966599854,4.46466508,225.73,225.68,0.03142778]
[1737966600151,0.03256508,225.73,225.68,0.03142778]
[1737966600849,23.02043704,225.73,225.68,0.03142778]
[1737966601348,23.02043704,225.73,225.61,4.1084]
[1737966601349,23.02043704,225.73,225.61,1.3192]
[1737966601855,4.46456508,225.73,225.65,4.4335]
[1737966602057,0.03256508,225.73,225.61,24.30707196]
[1737966602257,0.03256508,225.73,225.65,22.98787196]
[1737966602455,0.03256508,225.73,225.66,3.54511021]
[1737966602657,0.03256508,225.73,225.67,0.02987783]
[1737966603750,4.4328,225.7,225.67,0.02987783]
[1737966603956,0.03256508,225.73,225.67,0.02987783]
[1737966604152,22.98787196,225.7,225.67,7.783e-05]
[1737966604352,4.4343,225.62,225.58,1.3622]
[1737966604561,22.98787196,225.66,225.5,1.4602]
[1737966604752,22.98787196,225.62,225.51,0.79571111]
[1737966605158,22.98787196,225.62,225.5,1.4602]
[1737966605550,0.0328332,225.58,225.54,0.03000755]
[1737966605956,4.4679332,225.58,225.54,0.03000755]
[1737966606152,23.02070516,225.58,225.54,0.03000755]
[1737966606653,0.0328332,225.58,225.54,0.03000755]
[1737966607053,0.0328332,225.58,225.55,4.4355]
[1737966607258,0.0328332,225.58,225.54,0.03000755]
[1737966608360,22.98787196,225.74,225.54,0.03000755]
[1737966608659,4.4338,225.64,225.54,8.10034178]
[1737966608861,22.98787196,225.66,225.54,2.8689]
[1737966609057,22.98787196,225.66,225.54,1.4279]
[1737966609258,4.4347,225.6,225.54,1.4279]
[1737966609457,22.98787196,225.62,225.47,1.441]
[1737966609762,4.4347,225.59,225.48,0.79592021]
[1737966609962,22.98787196,225.62,225.48,0.79592021]
[1737966610263,4.4359,225.54,225.52,0.03349037]
[1737966611057,4.46784151,225.57,225.52,0.03349037]
[1737966611258,0.03254151,225.57,225.52,0.03349037]
[1737966611453,4.46764151,225.57,225.52,0.03349037]
[1737966611852,23.02041347,225.57,225.52,0.03349037]
[1737966612056,4.4359,225.54,225.52,0.03349037]
[1737966612259,22.98787196,225.53,225.32,345.71354056]
[1737966612459,22.98787196,225.49,225.38,0.17108]
[1737966612757,4.4382,225.42,225.39,0.79606534]
[1737966612966,22.98787196,225.49,225.38,0.17108]
[1737966613458,0.02903545,225.46,225.38,0.17108]
[1737966613654,0.02903545,225.46,225.41,0.0329001]
[1737966614457,4.4379,225.43,225.41,0.0329001]
[1737966614654,4.4379,225.43,225.41,1e-07]
[1737966615057,22.98787196,225.45,225.38,8e-05]
[1737966615058,4.4387,225.39,225.38,8e-05]
[1737966615257,0.02903545,225.46,225.38,8e-05]
[1737966615464,191.0,225.47,225.38,8e-05]
[1737966615658,22.98787196,225.44,225.38,8e-05]
[1737966615870,4.4385,225.4,225.38,8e-05]
[1737966616358,0.02983552,225.41,225.38,8e-05]
[1737966616560,0.02983552,225.41,225.39,4.4386]
[1737966616763,0.02983552,225.41,225.38,8e-05]
[1737966617469,4.4385,225.4,225.38,8e-05]
[1737966617666,0.02983552,225.41,225.38,8e-05]
[1737966618667,0.02983552,225.41,225.39,4.4386]
[1737966618866,22.98787196,225.57,225.38,8e-05]
[1737966619068,4.437,225.48,225.4,4.4385]
[1737966619461,4.437,225.48,225.38,8e-05]
[1737966619771,24.37087196,225.57,225.38,0.79628655]
[1737966620065,0.03030086,225.45,225.41,0.03245552]
[1737966620368,22.98787196,225.48,225.41,0.03245552]
[1737966620567,0.03259376,225.45,225.41,0.03245552]
[1737966620771,22.98787196,225.44,225.38,8e-05]
[1737966620964,1.383,225.57,225.26,0.79642504]
[1737966620965,22.98787196,225.4,225.26,0.79642504]
[1737966621160,1.452,225.43,225.39,0.02805612]
[1737966621366,4.4384,225.41,225.31,4.4402]
[1737966621566,1.48001687,225.43,225.39,0.03227324]
[1737966621769,22.98787196,225.4,225.23,96.19200207]
[1737966621970,4.4404,225.31,225.24,0.79671536]
[1737966622169,22.98787196,225.4,225.23,96.19200207]
[1737966622367,22.98787196,225.35,225.23,96.19200207]
[1737966622870,0.02866133,225.31,225.24,0.79675919]
[1737966623066,0.02866133,225.31,225.23,96.19200207]
[1737966623365,0.02866133,225.31,225.26,4.4412]
[1737966623771,0.02866133,225.31,225.23,96.19200207]
[1737966624473,22.98787196,225.27,225.08,22.98787196]
[1737966624769,22.98787196,225.27,225.16,4.95626688]
[1737966624969,0.02827873,225.23,225.17,0.79696688]
[1737966625566,0.02827873,225.23,225.19,4.4425]
[1737966625873,0.02827873,225.23,225.16,4.1593]
[1737966626069,0.02827873,225.23,225.17,0.79698197]
[1737966626672,0.02827873,225.23,225.16,4.1593]
[1737966627673,0.02827873,225.23,225.16,8.6025]
[1737966627877,0.02827873,225.23,225.16,4.1593]
[1737966628571,0.02827873,225.23,225.14,4.4435]
[1737966629170,4.4427,225.19,225.1,4.4443]
[1737966629574,22.98787196,225.23,225.09,4.2369]
[1737966629775,0.02965526,225.17,225.11,4.4441]
[1737966630073,0.02965526,225.17,225.09,4.2369]
[1737966630572,0.02965526,225.17,225.09,8.6815]
[1737966631476,0.02965526,225.17,225.01,3.06]
[1737966631774,22.98787196,225.19,225.02,4.88236581]
[1737966632075,0.02860406,225.11,225.08,4.4448]
[1737966632476,27.43057196,225.19,225.1,4.4444]
[1737966632668,0.03260674,225.12,225.02,4.085]
[1737966632976,22.98787196,225.23,225.04,22.98787196]
[1737966633174,22.98787196,225.23,225.05,0.79726896]
[1737966633473,22.98787196,225.27,225.08,22.98787196]
[1737966633670,22.98787196,225.27,225.09,0.79726896]
[1737966633870,22.98787196,225.31,225.12,22.98787196]
[1737966634075,22.98787196,225.35,225.16,0.02852981]
[1737966634276,22.98787196,225.35,225.16,23.01640177]
[1737966634473,22.98787196,225.39,225.2,22.98787196]
[1737966634774,22.98787196,225.43,225.24,22.98787196]
[1737966634977,25.71367196,225.47,225.25,3.85726896]
[1737966635179,24.37177196,225.47,225.26,0.79726896]
[1737966635478,22.98787196,225.47,225.31,0.03177589]
[1737966635673,22.98787196,225.43,225.31,0.03177589]
[1737966635876,27.42737196,225.35,225.29,0.79726896]
[1737966636070,22.98787196,225.35,225.26,2.7445]
[1737966636476,27.42747196,225.35,225.28,0.03338535]
[1737966636675,0.02939199,225.33,225.28,0.03338535]
[1737966637674,22.98787196,225.31,225.28,0.03338535]
[1737966637875,4.46939199,225.33,225.28,0.03338535]
[1737966638579,0.02939199,225.33,225.28,0.03338535]
[1737966639682,37.55571142,225.29,225.16,1.3842]
[1737966639875,37.55571142,225.29,225.17,1.3241]
[1737966640075,4.4413,225.26,225.17,1.3241]
[1737966640881,0.02933151,225.24,225.19,0.03013904]
[1737966641283,4.4419,225.23,225.19,0.03013904]
[1737966641582,0.02933151,225.24,225.19,0.03013904]
[1737966641784,4.47113151,225.24,225.19,0.03013904]
[1737966643176,0.02933151,225.24,225.19,0.03013904]
[1737966644278,4.4419,225.23,225.19,0.03013904]
[1737966644487,0.02933151,225.24,225.19,0.03013904]
[1737966645187,4.4423,225.21,225.19,0.03013904]
[1737966645786,4.4424,225.2,225.19,0.03013904]
[1737966646586,37.55571142,225.21,225.09,1.3941]
[1737966647185,4.4429,225.18,225.09,1.3941]
[1737966647385,37.55571142,225.21,225.09,1.3941]
[1737966647681,37.55571142,225.24,225.09,1.3941]
[1737966647881,4.4434,225.15,225.13,0.02811371]
[1737966648988,4.47316001,225.17,225.13,0.02811371]
[1737966649186,0.02996001,225.17,225.13,0.02811371]
[1737966649385,37.55571142,225.28,225.13,0.02811371]
[1737966649687,37.55571142,225.2,225.09,1.3941]
[1737966649887,37.55571142,225.24,225.1,0.79722047]
[1737966650085,37.55571142,225.28,225.1,0.79722047]
[1737966650581,0.03319662,225.21,225.17,0.03144234]
[1737966651588,4.4428,225.18,225.17,0.03144234]
[1737966651781,37.55571142,225.2,225.03,1.4615]
[1737966651984,37.55571142,225.16,225.04,0.79730954]
[1737966652185,37.55571142,225.16,225.03,5.9072]
[1737966652186,4.444,225.12,225.03,5.9072]
[1737966652582,37.55571142,225.16,225.04,0.79741757]
[1737966652792,37.55571142,225.16,225.03,1.4615]
[1737966652992,0.03213574,225.12,225.08,0.02954552]
[1737966658189,4.4442,225.11,225.08,0.02954552]
[1737966658597,0.03213574,225.12,225.08,0.02954552]
[1737966659000,4.4444,225.1,225.08,0.02954552]
[1737966659202,0.03213574,225.12,225.08,0.02954552]
[1737966659600,4.4446,225.09,225.08,0.02954552]
[1737966660202,0.03213574,225.12,225.08,0.02954552]
[1737966663603,0.03213574,225.12,225.08,4.47424552]
[1737966664203,0.03213574,225.12,225.08,0.02954552]
[1737966664506,23.15063423,225.28,225.08,0.02954552]
[1737966664700,23.15063423,225.24,225.08,0.82687055]
[1737966664906,23.15063423,225.24,225.12,4.4438]
[1737966665205,23.15063423,225.24,225.09,1.404]
[1737966665402,23.15063423,225.2,225.1,0.79724288]
[1737966665602,0.03254816,225.19,225.14,0.03389811]
[1737966669909,4.4433,225.16,225.14,0.03389811]
[1737966670208,0.03254816,225.19,225.14,0.03389811]
[1737966670608,4.47534816,225.19,225.14,0.03389811]
[1737966671010,0.03254816,225.19,225.14,0.03389811]
[1737966671310,4.4433,225.16,225.14,0.03389811]
[1737966671803,0.03254816,225.19,225.14,0.03389811]
[1737966673211,4.4412,225.27,225.19,4.4425]
[1737966673407,23.15063423,225.28,225.07,23.15063423]
[1737966673607,23.15063423,225.2,225.08,0.79704196]
[1737966673813,23.15063423,225.16,225.04,1.4026]
[1737966674013,23.15063423,225.16,225.05,0.79743083]
[1737966674315,4.443,225.18,225.05,0.79743083]
[1737966674513,0.02880063,225.13,225.08,0.03411032]
[1737966675909,23.15063423,225.29,225.08,0.03411032]
[1737966676115,25.88093423,225.33,225.11,23.15063423]
[1737966676313,25.88093423,225.33,225.12,2.25903083]
[1737966676515,24.50413423,225.33,225.13,3.91743083]
[1737966676813,24.50413423,225.33,225.14,0.79743083]
[1737966677206,24.50413423,225.33,225.21,0.03246711]
[1737966677207,0.03098852,225.26,225.21,0.03246711]
[1737966678409,0.03098852,225.26,225.21,0.82989794]
[1737966678618,0.03098852,225.26,225.21,0.03246711]
[1737966679415,24.51403423,225.37,225.21,0.03246711]
[1737966679815,24.51403423,225.37,225.29,4.4406]
[1737966680011,23.15063423,225.37,225.19,23.15063423]
[1737966680318,4.4388,225.39,225.2,0.79659072]
[1737966680517,0.03326945,225.3,225.26,0.02842217]
[1737966681014,0.03326945,225.3,225.28,4.4407]
[1737966681215,1.3751,225.44,225.29,0.79659072]
[1737966681421,23.15063423,225.42,225.3,0.79659072]
[1737966681721,23.15063423,225.38,225.07,9.95985647]
[1737966681916,4.44,225.33,225.13,6.62198323]
[1737966682120,23.15063423,225.34,225.14,0.79668323]
[1737966682416,0.03369104,225.25,225.21,0.03179262]
[1737966682612,1.3481,225.37,225.26,4.4412]
[1737966682818,1.3481,225.37,225.16,23.15063423]
[1737966683014,1.3481,225.37,225.17,0.79680285]
[1737966683214,4.4394,225.36,225.23,4.4418]
[1737966683419,1.3481,225.37,225.24,0.79680285]
[1737966683618,1.3481,225.37,225.17,0.79680285]
[1737966683820,0.02905305,225.33,225.28,0.03356971]
[1737966684016,23.15063423,225.3,225.14,0.79680285]
[1737966684322,4.4402,225.32,225.21,4.4421]
[1737966684625,1.3481,225.37,225.22,0.79680285]
[1737966684823,1.3481,225.37,225.17,0.79680285]
[1737966685013,1.3481,225.37,225.18,0.79680285]
[1737966685219,0.0328622,225.29,225.25,0.02846878]
[1737966685519,0.0328622,225.29,225.27,4.4409]
[1737966685715,0.0328622,225.29,225.28,0.79659601]
[1737966686720,0.0328622,225.29,225.26,1.3375]
[1737966686921,0.0328622,225.29,225.27,0.79666126]
[1737966687123,0.0328622,225.29,225.25,0.02846878]
[1737966687323,0.0328622,225.29,225.26,4.4412]
[1737966687529,0.0328622,225.29,225.27,0.79663256]
[1737966687729,0.0328622,225.29,225.25,0.02846878]
[1737966688427,0.0328622,225.29,225.28,4.4408]
[1737966689324,0.0328622,225.29,225.28,5.23745468]
[1737966689528,23.15063423,225.42,225.31,4.4402]
[1737966689729,4.4387,225.39,225.25,0.02846878]
[1737966689922,4.4387,225.39,225.23,0.79665287]
[1737966690318,26.60783423,225.46,225.24,24.47213423]
[1737966690518,214.15063423,225.5,225.4,4.4384]
[1737966690719,23.15063423,225.5,225.33,0.0296403]
[1737966690924,23.15063423,225.5,225.33,2.23873464]
[1737966691127,23.15063423,225.5,225.41,4.4382]
[1737966691529,23.15063423,225.5,225.35,1.3215]
[1737966691729,23.15063423,225.5,225.36,0.79635535]
[1737966691924,23.15063423,225.5,225.36,5.23555535]
[1737966692125,0.0302561,225.45,225.4,0.02819456]
[1737966692725,23.18089033,225.45,225.4,0.02819456]
[1737966693134,23.15063423,225.41,225.27,3.14]
[1737966693428,24.60013423,225.52,225.29,23.15063423]
[1737966693723,4.4366,225.5,225.3,0.79655687]
[1737966693930,24.60013423,225.52,225.3,0.79655687]
[1737966694324,0.02905374,225.43,225.39,0.03363762]
[1737966694830,24.60013423,225.52,225.39,0.03363762]
[1737966695033,0.03353691,225.43,225.39,0.03363762]
[1737966695231,24.60013423,225.52,225.39,0.03363762]
[1737966695526,0.02853036,225.43,225.39,0.03363762]
[1737966695730,24.60013423,225.52,225.39,0.03363762]
[1737966696222,0.03093339,225.48,225.39,0.03363762]
[1737966697128,4.4375,225.45,225.39,0.03363762]
[1737966697728,0.03093339,225.48,225.39,0.03363762]
[1737966698223,0.03093339,225.48,225.46,4.4373]
[1737966698428,1.3978,225.58,225.44,3.14]
[1737966699027,1.3978,225.58,225.45,0.79602094]
[1737966699424,4.4347,225.6,225.49,4.4366]
[1737966699630,0.03131852,225.54,225.49,0.03299529]
[1737966700027,4.4346,225.6,225.49,4.4366]
[1737966700228,0.03406771,225.54,225.49,0.03180674]
[1737966700832,0.03406771,225.54,225.38,3.14]
[1737966701029,23.15063423,225.51,225.38,3.14]
[1737966701228,23.81333423,225.55,225.38,3.14]
[1737966702032,0.02982573,225.49,225.44,0.03294281]
[1737966703834,4.46662573,225.49,225.44,0.03294281]
[1737966704334,4.4369,225.48,225.44,0.03294281]
[1737966704927,4.4369,225.48,225.4,4.4385]
[1737966705136,4.4372,225.47,225.39,4.4386]
[1737966705335,0.02982573,225.49,225.38,3.14]
[1737966705733,4.4371,225.47,225.38,7.5788]
[1737966705936,23.15063423,225.47,225.26,23.15063423]
[1737966706134,2.8308,225.46,225.4,0.03198908]
[1737966706333,4.4388,225.39,225.3,4.4402]
[1737966706737,2.8308,225.46,225.32,0.02886943]
[1737966706937,0.0311992,225.37,225.33,4.4398]
[1737966707437,0.02961441,225.37,225.33,0.03034574]
[1737966708944,23.81333423,225.55,225.34,23.15063423]
[1737966709141,1.3777,225.53,225.35,2.16417253]
[1737966709339,4.4369,225.49,225.38,4.4387]
[1737966709540,4.4369,225.49,225.35,1.3676]
[1737966709741,1.3777,225.53,225.35,1.3676]
[1737966709944,1.3777,225.53,225.36,0.79631693]
[1737966710239,0.02807208,225.46,225.42,0.03066933]
[1737966710442,0.02807208,225.46,225.29,0.7964101]
[1737966710638,23.15063423,225.43,225.3,0.79649612]
[1737966710841,2.7967,225.42,225.28,1.3403]
[1737966711142,2.7967,225.42,225.29,0.79659704]
[1737966711342,4.4387,225.39,225.3,4.4403]
[1737966711545,0.03369467,225.38,225.33,0.02846037]
[1737966711847,2.7967,225.42,225.33,0.02846037]
[1737966712341,23.15063423,225.47,225.33,0.02846037]
[1737966712542,23.15063423,225.47,225.3,0.79656971]
[1737966712734,23.15063423,225.51,225.3,23.94720394]
[1737966713043,0.03062224,225.41,225.37,4.439]
[1737966713339,4.4373,225.46,225.3,23.15063423]
[1737966713643,23.15063423,225.51,225.31,0.79639171]
[1737966714239,0.03406615,225.43,225.31,0.79639171]
[1737966714445,23.15063423,225.51,225.39,0.02994388]
[1737966715243,4.4372,225.47,225.39,0.02994388]
[1737966715444,23.15063423,225.51,225.39,0.02994388]
[1737966715648,0.02908307,225.45,225.39,0.02994388]
[1737966715945,23.15063423,225.51,225.39,0.02994388]
[1737966716145,4.437,225.48,225.4,4.4384]
[1737966716346,23.15063423,225.51,225.4,4.4384]
[1737966716646,2.0552,225.53,225.39,0.02994388]
[1737966716848,4.4364,225.51,225.41,4.4381]
[1737966717147,0.03088648,225.48,225.44,0.02952445]
[1737966717447,2.0552,225.53,225.44,0.02952445]
[1737966718245,1.4225,225.53,225.44,0.02952445]
[1737966718448,1.197,225.57,225.44,0.02952445]
[1737966718648,5.6322,225.57,225.44,0.02952445]
[1737966719250,5.6322,225.57,225.48,4.4368]
[1737966719446,214.15063423,225.68,225.49,83.02]
[1737966719646,5.89905943,225.76,225.54,23.15063423]
[1737966719954,5.89905943,225.76,225.66,4.4334]
[1737966720154,5.89905943,225.76,225.62,23.15063423]
[1737966720452,5.89905943,225.76,225.63,1.3861]
[1737966720751,17.69717829,225.77,225.63,4.1413]
[1737966720952,48.60177546,225.78,225.67,0.03365246]